Cogmind - Beta 13 @@@ ROGUE MODE // 2024.05.15 @ 10:18:15 Player: Crackrock_Steady Result: Destroyed by Y-45 Defender with Beam Rifle Performance ------------- Evolutions (1) 500 Regions Visited (3) 600 Robots Destroyed (36) 180 Value Destroyed (682) 682 Prototype IDs (2) 40 Alien Tech Used (0) 0 Bonus (0) 0 TOTAL SCORE: 2002 Bonus ------- None Cogmind --------- Core Integrity 0/400 Matter 57/300 Energy 63/100 System Corruption 7% Temperature Cool (9) Movement Core (50) Location -9/Materials Parts ------- > --- POWER (1) -------- (None) > --- PROPULSION (2) --- (None) > --- UTILITY (4) ------ Visual Processing Unit > --- WEAPON (2) ------- (None) > --- INVENTORY (5) ---- Aluminum Leg Aluminum Leg Peak State ------------ > --- POWER ------------ Ion Engine > --- PROPULSION ------- Aluminum Leg Improved Aluminum Leg > --- UTILITY ---------- Sensor Array Signal Interpreter Reaction Control System Reaction Control System > --- WEAPON ----------- Small Laser Assault Rifle > --- INVENTORY -------- Light Ion Engine Structural Scanner Visual Processing Unit Reaction Control System Grenade Launcher [Rating: 14] Favorites ----------- Power Ion Engine Engine Ion Engine Propulsion Aluminum Leg Leg Aluminum Leg Utility Sensor Array Device Sensor Array Storage Small Storage Unit Processor Signal Interpreter Protection Light Armor Plating Weapon Small Laser Energy Gun Small Laser Ballistic Gun Assault Rifle Launcher Grenade Launcher Build | -11 -10 -10 -9 ------- Run | Yrd Mat Min Mat Slots Evolved 2 | . . . 2 Power . | . . . . Propulsion . | . . . . Utility 2 | . . . 2 Weapon . | . . . . Parts Attached 46 | 6 17 . 23 Power 4 | 1 1 . 2 Engine 4 | 1 1 . 2 Core . | . . . . Reactor . | . . . . Propulsion 10 | 2 4 . 4 Treads . | . . . . Leg 10 | 2 4 . 4 Wheel . | . . . . Hover . | . . . . Flight . | . . . . Utility 13 | 1 4 . 8 Device 9 | . 3 . 6 Storage 1 | 1 . . . Processor 2 | . 1 . 1 Hackware . | . . . . Protection 1 | . . . 1 Artifact . | . . . . Weapon 19 | 2 8 . 9 Energy Gun 7 | 1 3 . 3 Energy Cannon . | . . . . Ballistic Gun 4 | 1 1 . 2 Ballistic Cannon . | . . . . Launcher 8 | . 4 . 4 Special Weapon . | . . . . Impact Weapon . | . . . . Slashing Weapon . | . . . . Piercing Weapon . | . . . . Special Melee Weapon . | . . . . Unidentified Prototypes . | . . . . Parts Lost 20 | . 1 . 19 Power 4 | . 1 . 3 Propulsion 2 | . . . 2 Utility 7 | . . . 7 Weapon 7 | . . . 7 Highest Loss Streak 6 | . 1 . 6 To Critical Strikes . | . . . . Average Slot Usage (%) 80 | . 88 100 72 Engine 10 | . 12 14 8 Leg 20 | . 27 28 14 Device 15 | . 8 14 21 Storage 2 | . 5 . . Processor 8 | . 8 14 8 Protection 1 | . . . 1 Energy Gun 8 | . 12 14 6 Ballistic Gun 8 | . 11 . 7 Launcher 3 | . 2 14 3 Naked Turns . | . . . . Heaviest Build 15 | 13 15 10 14 Greatest Support 23 | 20 20 20 23 Greatest Overweight (x) 3 | . 1 . 3 Average Overweight (x) . | . . . . Largest Inventory Capacity 8 | 8 8 5 5 Average Capacity 5 | 5 6 5 5 Most Carried 5 | 5 5 5 5 Average Carried 4 | 2 3 5 4 Final Capacity 8 | 8 5 5 5 Final Carried 5 | 2 5 5 2 Class Distribution -------------------- 92% | Mutant 3% | Scavenger-Skirmisher 3% | Scavenger-Mutant Dominant Class ---------------- Mutant | -10/Materials Scavenger-Mutant | -10/Mines Mutant | -9/Materials Resources | -11 -10 -10 -9 ----------- Run | Yrd Mat Min Mat Matter Collected 711 | 227 162 . 322 Remotely . | . . . . Salvage Created 754 | . 326 . 428 Parts 63 | . 28 . 35 Haulers Intercepted . | . . . . Recyclers Shooed 1 | . 1 . . Parts Field Recycled . | . . . . Retrieved Matter . | . . . . Parts Self-Destructed . | . . . . Prevented . | . . . . Kills | -11 -10 -10 -9 ------- Run | Yrd Mat Min Mat Combat Hostiles Destroyed 24 | . 9 . 15 Guns 15 | . 6 . 9 AOE 9 | . 3 . 6 Classes Destroyed 10 | . 5 . 5 Worker 1 | . . . 1 Builder 3 | . . . 3 Recycler 2 | . 2 . . Mechanic 1 | . . . 1 Operator 2 | . 1 . 1 Watcher 3 | . 2 . 1 Swarmer 13 | . 6 . 7 Grunt 8 | . 3 . 5 Brawler 1 | . . . 1 Sentry 2 | . . . 2 Best Kill Streak 7 | . 7 . 6 Combat Bots Only 6 | . 4 . 6 Max Kills in Single Turn 2 | . 2 . 2 Gunslinging 1 | . 1 . 1 Exploded 2 | . 2 . 2 Melee . | . . . . Uniques/NPCs Destroyed . | . . . . Combat | -11 -10 -10 -9 -------- Run | Yrd Mat Min Mat Hostile Shots Fired 215 | . 47 . 168 Missed 73 | . 10 . 63 Damage Taken 2136 | . 375 . 1761 Core 486 | . 72 . 414 Absorbed by Shields . | . . . . Regen/Repaired (Parts) 101 | . . . 101 Core Remaining (%) 85 | 100 . 71 . Volleys Fired 85 | . 31 . 54 Largest 2 | . 2 . 2 Hottest 90 | . 70 . 90 Shots Fired 142 | . 60 . 82 Gun 119 | . 55 . 64 Cannon . | . . . . Launcher 23 | . 5 . 18 Special . | . . . . Kinetic 64 | . 28 . 36 Thermal 44 | . 27 . 17 Explosive 23 | . 5 . 18 Electromagnetic 11 | . . . 11 Robot Hit Streak 7 | . 5 . 7 Robot Miss Streak 6 | . 6 . 4 Penetration Max . | . . . . Secondary Targets 4 | . 3 . 1 Max Gunslinging Chain 1 | . 1 . 1 Shots Hit Robots 75 | . 26 . 49 Core Hits 63 | . 20 . 43 Critical Kills . | . . . . Critical Parts Destroyed . | . . . . Critical Strikes . | . . . . Melee Attacks . | . . . . Impact . | . . . . Slashing . | . . . . Piercing . | . . . . Sneak Attacks . | . . . . Combat Hostiles . | . . . . Follow-up Attacks . | . . . . Damage Inflicted 2070 | . 654 . 1416 Guns 749 | . 283 . 466 Cannons . | . . . . Explosions 1319 | . 371 . 948 Melee . | . . . . Ramming 2 | . . . 2 Kinetic 389 | . 119 . 270 Thermal 283 | . 164 . 119 Explosive 1319 | . 371 . 948 Electromagnetic 77 | . . . 77 Impact . | . . . . Slashing . | . . . . Piercing . | . . . . Highest Corruption 7 | . . . 7 Average Corruption 7 | . . . 7 Corruption Purged . | . . . . Corruption Blocked . | . . . . Effects 10 | . . . 10 Message Errors 3 | . . . 3 Matter Fused 2 | . . . 2 Heat Flow Errors 1 | . . . 1 Energy Discharges 2 | . . . 2 Data Loss (major) 1 | . . . 1 Misfires 1 | . . . 1 Overload Shots . | . . . . Overflow Damage 13 | . . . 13 Projectiles . | . . . . Explosions 13 | . . . 13 Melee . | . . . . Knockbacks . | . . . . Impact . | . . . . Kinetic . | . . . . Secondary . | . . . . Self-Inflicted Damage 72 | . 12 . 60 Shots 3 | . 1 . 2 Rammed . | . . . . Targets Rammed 1 | . . . 1 Kicked 1 | . . . 1 Crushed . | . . . . Highest Temperature 192 | . 24 . 192 Average Temperature 22 | . 7 . 26 Received Heat Transfer 567 | . 93 . 474 Siege Activations . | . . . . Robots Corrupted . | . . . . Combat Hostiles . | . . . . Parts Fried . | . . . . Impact Corruptions . | . . . . Robots Melted . | . . . . Combat Hostiles . | . . . . Parts Melted . | . . . . Heat Transferred 650 | . 375 . 275 Parts Sabotaged . | . . . . Parts Stolen . | . . . . Parts Stripped . | . . . . Power Chain Reactions . | . . . . Alert | -11 -10 -10 -9 ------- Run | Yrd Mat Min Mat Peak Influence 391 | . 285 65 391 Initial 65 | . . 65 25 Average 189 | . 168 65 230 Maximum Alert Level 1 | . 1 . 1 Low Security (%) 50 | 100 59 100 35 Level 1 49 | . 40 . 64 Level 2 . | . . . . Level 3 . | . . . . Level 4 . | . . . . Level 5 . | . . . . High Security . | . . . . Max Security . | . . . . Squads Dispatched 6 | . 1 . 5 Investigation 2 | . . . 2 Extermination . | . . . . Reinforcement 4 | . 1 . 3 Assault . | . . . . Garrison . | . . . . Intercept . | . . . . Searches Triggered . | . . . . Construction Impeded 1 | . . . 1 Haulers Reinforced . | . . . . Active Scanning Responses . | . . . . Cargo Convoy Interrupts . | . . . . Stealth | -11 -10 -10 -9 --------- Run | Yrd Mat Min Mat Distress Signals 6 | . 2 . 4 Communications Jammed . | . . . . Distress Signals . | . . . . Times Spotted 52 | . 16 . 36 Peak Tracking Total 7 | . 5 . 7 Tactical Retreats 3 | . 1 . 2 Traps | -11 -10 -10 -9 ------- Run | Yrd Mat Min Mat Traps Triggered 3 | . 3 . . Indirectly . | . . . . Trap Hack Attempts . | . . . . Triggered . | . . . . Disarmed . | . . . . Reprogrammed 4 | . 4 . . Reused 2 | . 2 . . Traps Extracted . | . . . . Installed . | . . . . Triggered 2 | . 2 . . Machines | -11 -10 -10 -9 ---------- Run | Yrd Mat Min Mat Machines Disabled 2 | . 1 . 1 Max in Single Turn 1 | . 1 . 1 Machines Repaired . | . . . . Machines Dismantled . | . . . . Machines Sabotaged . | . . . . Overloaded Fab Kills . | . . . . Hacking | -11 -10 -10 -9 --------- Run | Yrd Mat Min Mat Machines Accessed 8 | . 3 . 5 Terminals 7 | . 3 . 4 Fabricators . | . . . . Repair Stations 1 | . . . 1 Recycling Units . | . . . . Scanalyzers . | . . . . Garrison Access . | . . . . Total Hacks 36 | . 10 . 26 Successful 21 | . 9 . 12 Failed 15 | . 1 . 14 Catastrophic . | . . . . Database Lockouts . | . . . . Manual . | . . . . Terminals 30 | . 10 . 20 Fabricators . | . . . . Repair Stations 6 | . . . 6 Recycling Units . | . . . . Scanalyzers . | . . . . Garrison Access . | . . . . Terminal Hacks 16 | . 9 . 7 Record 5 | . 3 . 2 Robot Analysis 1 | . . . 1 Prototype ID Bank 1 | . 1 . . Emergency Access Points 1 | . . . 1 Alert Level 2 | . 2 . . Locate Traps 1 | . . . 1 Reprogram Traps 1 | . 1 . . Dispatch Records 2 | . 1 . 1 Surveillance Status 1 | . . . 1 Zone Layout 1 | . 1 . . Fabricator Hacks . | . . . . Repair Station Hacks 5 | . . . 5 Scan Component 3 | . . . 3 Repair 2 | . . . 2 Recycling Unit Hacks . | . . . . Scanalyzer . | . . . . Garrison Access Hacks . | . . . . Unauthorized Hacks . | . . . . Terminals . | . . . . Fabricators . | . . . . Repair Stations . | . . . . Recycling Units . | . . . . Scanalyzers . | . . . . Garrison Access . | . . . . Data Cores Recovered 1 | . 1 . . Used . | . . . . Hacking Detections 6 | . 2 . 4 Full Trace Events 4 | . 1 . 3 Feedback Events . | . . . . Feedback Blocked . | . . . . Robot Schematics Acquired . | . . . . Robots Built . | . . . . Authchips . | . . . . Time . | . . . . Total Robot Build Rating . | . . . . Part Schematics Acquired . | . . . . Parts Built . | . . . . Authchips . | . . . . Time . | . . . . Total Part Build Rating . | . . . . Parts Repaired 2 | . . . 2 Time 52 | . . . 52 Parts Recycled . | . . . . Recycled Matter . | . . . . Retrieved Matter . | . . . . Retrieved Components . | . . . . Parts Scanalyzed . | . . . . Part Schematics Acquired . | . . . . Parts Damaged . | . . . . Bothacking | -11 -10 -10 -9 ------------ Run | Yrd Mat Min Mat Used RIF Installer . | . . . . Robots Hacked . | . . . . Non-combat . | . . . . Combat . | . . . . Robot Hacks Applied . | . . . . Relay Couplers Released . | . . . . Fabnet Peak Effective % . | . . . . Robots Rewired . | . . . . Allies Hacked . | . . . . Hacks Repelled . | . . . . Allies | -11 -10 -10 -9 -------- Run | Yrd Mat Min Mat Total Allies . | . . . . Largest Group . | . . . . Highest-Rated Group . | . . . . Highest-Rated Ally . | . . . . Total Orders . | . . . . Ally Attacks . | . . . . Total Damage . | . . . . Kills . | . . . . Allies Corrupted . | . . . . Allies Melted . | . . . . Intel | -11 -10 -10 -9 ------- Run | Yrd Mat Min Mat Robot Analysis Total 1 | . . . 1 Derelict Logs Recovered . | . . . . Drone Launches . | . . . . Drone Recoveries . | . . . . Exploration | -11 -10 -10 -9 ------------- Run | Yrd Mat Min Mat Turns Passed 1272 | 71 529 22 650 Spaces Moved 786 | 53 338 19 376 Core 137 | 9 2 . 126 Treads . | . . . . Legs 649 | 44 336 19 250 Wheels . | . . . . Hover . | . . . . Flight . | . . . . Fastest Speed 50 | 50 50 120 50 Average Speed 114 | 108 119 120 111 Slowest Speed 200 | 120 120 120 200 Overloaded Moves . | . . . . Propulsion Burnouts . | . . . . Robots Hopped . | . . . . Cave-ins Triggered 1 | . . . 1 Exploration Rate (%) 27 | 3 54 9 45 Regions Visited 3 Branch Regions 1 Pre-discovered Areas . | . . . . Known Exits Taken 2 | . 1 1 . Unknown Exits Taken 1 | 1 . . . Scrap Searched . | . . . . Spaces Dug . | . . . . Terrain Destroyed 114 | . 12 . 102 Melee . | . . . . Projectile . | . . . . AOE 114 | . 12 . 102 Terrain Rammed . | . . . . Walls Destroyed . | . . . . Machines Disabled . | . . . . Actions | -11 -10 -10 -9 --------- Run | Yrd Mat Min Mat Total 1010 | 66 398 18 528 Wait 57 | . . . 57 Move 783 | 52 337 18 376 Hop . | . . . . Pick Up 28 | 8 8 . 12 Fast Attach 13 | . 9 . 4 Attach 21 | 6 3 . 12 Detach . | . . . . Swap 12 | . 5 . 7 Drop 10 | . 5 . 5 Fire 85 | . 31 . 54 Melee . | . . . . Ram . | . . . . Kick 1 | . . . 1 Crush . | . . . . Escape Stasis . | . . . . Rewire . | . . . . Trap . | . . . . Miscellaneous . | . . . . Route ------- -11/Scrapyard -10/Materials (discovered 3 exits: *Mat x2 / *Min) -10/Mines -9/Materials History --------- Turn | Location | Event 5 | -11/Scrapyard | Discovered new exit (range 16) 72 | -11/Scrapyard | Entered Materials 311 | -10/Materials | Build established: Mutant 560 | -10/Materials | Discovered new exit (range 14) 560 | -10/Materials | Discovered new exit (range 15) 581 | -10/Materials | Discovered new exit (range 15) 600 | -10/Materials | Identified exit to Mines 601 | -10/Materials | Entered Mines 609 | -10/Mines | Discovered new exit (range 7) 616 | -10/Mines | Identified exit to Materials 623 | -10/Mines | Entered Materials 623 | -9/Materials | Evolved 2 slots: Utility x2 821 | -9/Materials | Crushed by falling debris 852 | -9/Materials | Lost 3 parts (1n2u) 941 | -9/Materials | Lost 3 parts (1p1u1w) 994 | -9/Materials | Repaired Grenade Launcher 1023 | -9/Materials | Repaired Aluminum Leg 1157 | -9/Materials | Core integrity fell below 50% 1215 | -9/Materials | Lost 5 parts (1p1n1u2w) 1262 | -9/Materials | Core integrity fell below 20% 1273 | -9/Materials | Destroyed by Y-45 Defender with Beam Rifle Last Messages --------------- 6x Shock Trap Map updated. ALERT: Suspicious activity at Terminal M012. Dispatching Investigation squad. Acquired Hvy. EM Pulse Gun. L%EW4EI8PVUD|6 4%8&#ZP>A3>A3ESI Reaction Control System destroyed. Y-45 Defender misfires. Hvy. EM Pulse Gun destroyed. Critical hit (Burn: +37). Y-45 Defender misfires. WAU>M%VLONMTN5B&N0MEN=TZM|&YYCYL Hvy. EM Pulse Gun destroyed. Lgt. Ion Engine destroyed. Critical hit (Burn: +37). Y-45 Defender IFF system glitched. The unstable cave ceiling collapses. Critical hit (Burn: +37). Structural Scanner destroyed. Grenade Launcher destroyed. Map ----- +----------------------------------------------------+ | ! # ??????????????????????????????????????????? | | # ???? # ???????????????????????????????????? | | # ???" # ???????????????????????????????????? | | # ??"" + ???????????????????????????????????? | | # ?""" # ? ##???????????????????????????????? | | # # ? ###??????????????????????????????? | | # ### ###??????????????????????????????? | | ## # ??????????????????????????????? | | ##??????????????????????????????? | | * ##??????????????????????????????? | | ##??????????????????????????????? | | ## ##??????????????????????????????? | | ## #######??????????????????????????????? | | ##?" ########??????????????????????????????? | | """ ##?? [###???????????????????????????????????? | | """ ##??? ##????????????????????????????????????? | | """ ##??? ##????????????????????????????????????? | | """ ##??? ##????????????????????????????????????? | | """ ##??????????????????????????????????????????? | | ##??????????????????????????????????????????? | | /######??????????????????????????????????????????? | | ######??????????????????????????????????????????? | | ##????????????????? ##### ????????????????????? | | ##????#######??????######## ????????????????????? | | ###???#######????? ## # ????????????????????? | | ########"""####### ## [@ # ????????????????????? | | #######"T"####### ## [ # ????????????????????? | | #### ^^## # ????????????????????? | | ##### ^ #Y # ????????????????????? | | #### ^^ + # ????????????????????? | | #### """ ^ # ##????????????????????? | | ##### """ ####### ###???????????????????? | | ###### """ ###### ##???????????????????? | | # ##### ##???????????????????? | | """ + # # ##???????????????????? | | """"" # """ # ## Y ###???????????????????? | | """" # """ # ## ###???????????????????? | | =# """ # ## ##????????????????????? | | ####### # ## """ #????????????????????? | | ####### # ## """ ###???????????????????? | | ????? # """ # ## """ ###???????????????????? | | ????? # """ ##+### """ ##???????????????????? | | ????? # """ # """ ###???????????????????? | | ????? + + ###???????????????????? | | ??? # # """ ##????????????????????? | | ?? # ####### # """ ##????????????????????? | | ? # # ## # "S ##????????????????????? | | # # ???## # """ ##????????????????????? | | ####### # ???## # "" ##????????????????????? | | ###### # ???## # ##????????????????????? | +----------------------------------------------------+ Best States ------------- Heat Dissipation 28 Energy Generation 10 Energy Capacity 250 Matter Stores 300 Matter Capacity 300 Sight Range 18 Robot Scan Range 14 Terrain Scan Density 10 ECM Strength 1 Armor Coverage 150 Evasion (%) 59 Item Schematics ----------------- None Robot Schematics ------------------ None Fabricated ------------ Nothing Alien Tech Used ----------------- None Achievements -------------- None Challenges ------------ None Game ------ Seed AlphaBackupBooster Manual? 0 Play Time 00:25:06 Cumulative 3.7 hours Start 2024.05.15 @ 09:49:42 End 2024.05.15 @ 10:18:15 Sessions 1 Manual Loads 0 Difficulty Rogue Special Mode None Game No. 11 Rogue 11 Adventurer 0 Explorer 0 Win Type - Total 0 Types 0/0/0/0/0/0/0/0/0 Lore% 5 Gallery% 9 Achievement% 9 Wizard Run 0 Options --------- Layout 1 ASCII 0 Keyboard 0 Movement Mouse Keybinds 0 Fullscreen 1 Font 24/Smallcaps Map View 50x35 Zoom Use 0% Tactical HUD 0 Map Filters NONE Filters NONE Steam 1 RUN: e7c5c388-d6c7-4a13-9b6f-67e8b44c8dd6